fUSD/lending_fUSD_20260108
["ID","MTS","AMOUNT","RATE_DAILY","PERIOD"]
[400793065,1767831041246,-300.0,0.00017867,2]
[400793067,1767831041256,-300.0,0.00017868,2]
[400793069,1767831041265,-1000.0,0.00017868,2]
[400793071,1767831041275,-1000.0,0.00017869,2]
[400793073,1767831041284,-300.0,0.0001787,2]
[400793074,1767831041294,-300.0,0.0001787,2]
[400793076,1767831041303,-300.0,0.00017871,2]
[400793078,1767831041312,-300.0,0.00017872,2]
[400793080,1767831041322,-300.0,0.00017872,2]
[400793082,1767831041331,-300.0,0.00017873,2]
[400793084,1767831041341,-150.0,0.00017874,2]
[400793085,1767831041350,-238.29,0.00017876,2]
[400793087,1767831041359,-1000.0,0.00017877,2]
[400793089,1767831041368,-300.0,0.00017879,2]
[400793091,1767831041378,-300.0,0.0001788,2]
[400793093,1767831041387,-300.0,0.0001788,2]
[400793094,1767831041396,-300.0,0.0001788,2]
[400793096,1767831041406,-300.0,0.00017881,2]
[400793098,1767831041416,-1000.0,0.00017881,2]
[400793100,1767831041426,-300.0,0.00017882,2]
[400793102,1767831041436,-1000.0,0.00017882,2]
[400793104,1767831041447,-209.13021692,0.00017883,2]
[400793106,1767831041456,-300.0,0.00017884,2]
[400793108,1767831041466,-238.29,0.00017885,2]
[400793109,1767831041477,-300.0,0.00017886,2]
[400793111,1767831041486,-300.0,0.00017887,2]
[400793113,1767831041496,-150.0,0.00017888,2]
[400793115,1767831041507,-150.0,0.00017888,2]
[400793117,1767831041516,-1184.88969418,0.0001789,2]
[400793119,1767831041526,-300.0,0.00017893,2]
[400793120,1767831041538,-300.0,0.00017893,2]
[400793122,1767831041548,-238.28046523,0.00017894,2]
[400793124,1767831041557,-151.0,0.00017897,2]
[400793126,1767831041567,-500.0,0.00017899,2]
[400793128,1767831041576,-450.63605817,0.00017899,2]
[400793130,1767831041586,-500.0,0.00017899,2]
[400793131,1767831041596,-206.2528324,0.00017899,2]
[400793133,1767831041606,-500.0,0.00017899,2]
[400793135,1767831041615,-500.0,0.00017899,2]
[400793137,1767831041625,-174.14927633,0.00017899,2]
[400793139,1767831041635,-500.0,0.00017899,2]
[400793141,1767831041644,-529.68631152,0.00017899,2]
[400793142,1767831041654,-513.96214798,0.00017899,2]
[400793144,1767831041663,-500.0,0.00017899,2]
[400793146,1767831041673,-179.59986831,0.00017899,2]
[400793148,1767831041683,-500.0,0.00017899,2]
[400793150,1767831041692,-500.0,0.00017899,2]
[400793152,1767831041701,-500.0,0.00017899,2]
[400793153,1767831041711,-400.58303632,0.00017899,2]
[400793155,1767831041720,-500.0,0.00017899,2]
[400793157,1767831041730,-500.0,0.00017899,2]
[400793159,1767831041739,-500.0,0.00017899,2]
[400793161,1767831041749,-276.72,0.00017899,2]
[400793163,1767831041759,-29133.1342,0.000179,2]
[400793165,1767831041769,-2268.8436,0.000179,2]
[400793166,1767831041778,-1000000.0,0.000179,2]
[400793168,1767831041788,-1000.0,0.000179,2]
[400793170,1767831041798,-17435.94623006,0.000179,3]
[400793172,1767831041807,-10000.0,0.000179,2]
[400793174,1767831041816,-1268.59080522,0.000179,2]
[400793196,1767831042071,-209.13021692,0.000179,2]
[400793197,1767831042083,-181.45660226,0.000179,2]
[400793198,1767831042093,-3648.87317715,0.000179,2]
[400793199,1767831042103,-12291.40483668,0.000179,2]
[400793200,1767831042112,-300.0,0.00017901,2]
[400793201,1767831042123,-300.0,0.00017903,2]
[400793202,1767831042133,-758.6,0.00017905,2]
[400793203,1767831042143,-1000.0,0.00017905,2]
[400793204,1767831042152,-150.0,0.0001791,2]
[400793205,1767831042163,-300.0,0.00017912,2]
[400793206,1767831042172,-150.0,0.00017914,2]
[400793207,1767831042182,-300.0,0.00017915,2]
[400793208,1767831042192,-300.0,0.00017916,2]
[400793209,1767831042202,-1000.0,0.00017917,2]
[400793210,1767831042211,-6784.39577,0.0001792,2]
[400793211,1767831042221,-150.0,0.00017922,2]
[400793212,1767831042231,-300.0,0.00017923,2]
[400793214,1767831042241,-1000.0,0.00017923,2]
[400793215,1767831042251,-300.0,0.00017925,2]
[400793217,1767831042261,-1000.0,0.00017928,2]
[400793219,1767831042271,-300.0,0.0001793,2]
[400793220,1767831042280,-300.0,0.00017932,2]
[400793222,1767831042290,-300.0,0.00017935,2]
[400793224,1767831042300,-300.0,0.00017936,2]
[400793226,1767831042310,-150.0,0.00017937,2]
[400793228,1767831042320,-157.15193471,0.00017937,2]
[400793230,1767831042330,-1000.0,0.0001794,2]
[400793232,1767831042339,-1000.0,0.00017942,2]
[400793234,1767831042349,-300.0,0.00017942,2]
[400793236,1767831042358,-300.0,0.00017943,2]
[400793238,1767831042368,-1000.0,0.00017946,2]
[400793240,1767831042378,-1000.0,0.00017946,2]
[400793242,1767831042387,-1000.0,0.00017951,2]
[400793244,1767831042398,-300.0,0.00017955,2]
[400793247,1767831042408,-300.0,0.00017955,2]
[400793249,1767831042418,-150.0,0.00017959,2]
[400793250,1767831042428,-1000.0,0.00017962,2]
[400793253,1767831042438,-1000.0,0.00017963,2]
[400793254,1767831042448,-1000.0,0.00017964,2]
[400793257,1767831042460,-1000.0,0.00017964,2]
[400793259,1767831042470,-1000.0,0.00017969,2]
[400793261,1767831042479,-1000.0,0.00017969,2]
[400793262,1767831042491,-500.0,0.0001797,2]
[400793265,1767831042502,-500.0,0.0001797,2]
[400793267,1767831042512,-500.0,0.0001797,2]
[400793269,1767831042522,-1000.0,0.0001797,2]
[400793271,1767831042532,-500.0,0.0001797,2]
[400793273,1767831042541,-1000.0,0.0001797,2]
[400793275,1767831042551,-500.0,0.0001797,2]
[400793277,1767831042561,-1000.0,0.0001797,2]
[400793279,1767831042570,-983.46328676,0.0001797,2]
[400793281,1767831042580,-1000.0,0.0001797,2]
[400793283,1767831042590,-1000.0,0.0001797,2]
[400793285,1767831042600,-1000.0,0.0001797,2]
[400793287,1767831042610,-1000.0,0.0001797,2]
[400793289,1767831042620,-1000.0,0.0001797,2]
[400793291,1767831042629,-1000.0,0.0001797,2]
[400793293,1767831042639,-1244.02944176,0.0001797,2]
[400793295,1767831042650,-1000.0,0.0001797,2]
[400793297,1767831042661,-300.0,0.0001797,2]
[400793299,1767831042671,-300.0,0.0001797,2]
[400793301,1767831042681,-150.0,0.00017973,2]
[400793303,1767831042690,-150.0,0.00017973,2]
[400793305,1767831042700,-300.0,0.00017975,2]
[400793307,1767831042710,-300.0,0.00017976,2]
[400793309,1767831042720,-300.0,0.0001798,2]
[400793311,1767831042729,-300.0,0.0001798,2]
[400793313,1767831042738,-150.0,0.0001798,2]
[400793315,1767831042748,-300.0,0.0001798,2]
[400793317,1767831042758,-500.0,0.00017982,2]
[400793319,1767831042768,-1000.0,0.00017984,2]
[400793321,1767831042778,-300.0,0.00017986,2]
[400793323,1767831042787,-1184.88969418,0.0001799,2]
[400793325,1767831042797,-1184.88969418,0.0001799,2]
[400793327,1767831042807,-151.0,0.00017993,2]
[400793329,1767831042817,-300.0,0.00017993,2]
[400793331,1767831042826,-300.0,0.00017995,2]
[400793333,1767831042836,-1000.0,0.00017995,2]
[400793335,1767831042846,-569958.74947965,0.00017996,2]
[400793338,1767831042864,-866953.12963995,0.00017996,2]
[400793339,1767831042873,-300.0,0.00017997,2]
[400793341,1767831042883,-151.0,0.00017997,2]
[400793343,1767831042893,-10478.7548832,0.00017998,2]
[400793345,1767831042902,-154.07533771,0.00017999,2]
[400793347,1767831042912,-712.18893287,0.00017999,2]
[400793349,1767831042922,-300.0,0.00017999,2]
[400793351,1767831042932,-274.431,0.00017999,2]
[400793353,1767831042941,-300.0,0.00017999,2]
[400793355,1767831042952,-500.0,0.00017999,2]
[400793357,1767831042961,-500.0,0.00017999,2]
[400793359,1767831042971,-330.31652128,0.00017999,2]
[400793361,1767831042981,-1006.0557,0.00017999,2]
[400793363,1767831042991,-300.0,0.00017999,2]
[400793365,1767831043001,-666.0,0.00017999,2]
[400793367,1767831043012,-636.32063453,0.00017999,2]
[400793369,1767831043021,-666.0,0.00017999,2]
[400793371,1767831043032,-300.0,0.00017999,2]
[400793373,1767831043041,-666.0,0.00017999,2]
[400793374,1767831043054,-300.0,0.00017999,2]
[400793376,1767831043065,-666.0,0.00017999,2]
[400793378,1767831043075,-5826.21400436,0.00017999,2]
[400793380,1767831043086,-5157096.315219,0.00018,2]
[400793383,1767831043099,-8119.40637927,0.00018,2]
[400793385,1767831043117,-1050.0,0.00018,2]
[400793387,1767831043131,-4867.7,0.00018,2]
[400793390,1767831043143,-829.57102,0.00018,2]
[400793392,1767831043155,-1370.716068,0.00018,2]
[400793394,1767831043167,-3349.6,0.00018,2]
[400793398,1767831043194,-2756.97143506,0.00018,2]
[400793400,1767831043206,-1671.54408516,0.00018,2]
[400793417,1767831043380,-382.12255105,0.00018,2]
[400793419,1767831043393,-1371.43,0.00018,2]
[400793422,1767831043413,-8786.18541958,0.00018,2]
[400793425,1767831043425,-8947.21879473,0.00018,2]
[400793427,1767831043437,-8943.78386462,0.00018,2]
[400793429,1767831043450,-9077.54866152,0.00018,2]
[400793431,1767831043464,-8943.84023489,0.00018,2]
[400793434,1767831043487,-2310.24529464,0.00018,2]
[400793437,1767831043509,-300.35996914,0.00018,2]
[400793616,1767831045378,-141.50910471,0.00015925,2]
[400793687,1767831046708,-9.49089529,0.00015925,2]
[400793688,1767831046719,-151.0,0.00015925,2]
[400793690,1767831046729,-6551.0,0.00017621,2]
[400793692,1767831046739,-37204.50910274,0.00018,2]
[400793695,1767831046751,-613.40739864,0.00018,2]
[400793697,1767831046763,-1588.61271646,0.00018,2]
[400795696,1767831182232,414.2,0.00012819,2]
[400795697,1767831182649,414.2,0.00013531,2]
[400795699,1767831183000,414.2,0.00014243,2]
[400795742,1767831318872,8596.45,0.00012819,2]
[400795743,1767831318955,2573.35,0.00012819,2]
[400795766,1767831388730,3061.7,0.00013699,2]
[400795767,1767831449070,209.55330275,0.0003135,120]
[400795768,1767831549263,2107.0,0.00014207,2]
[400795769,1767831698354,983.67,0.00014093,2]
[400795778,1767831778043,1100.0,0.00013989,2]
[400795779,1767831778384,600.0,0.0003135,120]
[400795780,1767831782823,174.29,0.00013289,2]
[400795781,1767831782907,925.71,0.00013289,2]
[400795782,1767831785720,600.0,0.00031898,120]
[400795783,1767831787518,1100.0,0.00012625,2]
[400795784,1767831787688,600.0,0.00032446,120]
[400795785,1767831789336,500.0,0.00014016,2]
[400795786,1767831793220,1100.0,0.00011994,2]
[400795787,1767831796228,150.0,0.00014016,2]
[400795788,1767831797382,1100.0,0.00011394,2]
[400795789,1767831802192,1100.0,0.00010824,2]
[400795791,1767831853549,500.0,0.00015,7]
[400795792,1767831870227,500.0,0.00032876,120]
[400795793,1767831870475,558.46843675,0.00032876,120]
[400795794,1767831922566,6550.01,0.00014282,2]
[400795795,1767831922643,3449.98,0.00014282,2]
[400795796,1767831943349,500.0,0.00032876,120]
[400795797,1767831955405,600.0,0.00032876,120]
[400795801,1767831992419,-200.0,0.00013945,2]
[400795837,1767832030916,815.44592026,0.0001305,2]
[400795838,1767832038400,-200.0,0.00013928,2]
[400795839,1767832068967,-501.86313919,0.00014,2]
[400795849,1767832232092,-478.4727,0.00014452,2]
[400795850,1767832232102,-250.0,0.00014455,2]
[400795851,1767832232112,-359.25059018,0.00014467,2]
[400795852,1767832232122,-166.66,0.00014528,2]
[400795853,1767832232132,-200.67704287,0.00014534,2]
[400795854,1767832232144,-572.40855554,0.00014534,2]
[400795855,1767832232154,-300.0,0.00014543,2]
[400795856,1767832232164,-168.15432606,0.00014543,2]
[400795857,1767832232177,-1031.84567394,0.00014543,2]
[400795858,1767832232187,-150.0,0.00014543,2]
[400795859,1767832232197,-1668.30432606,0.00014544,2]
[400795860,1767832232208,-6538.05098953,0.00014544,2]
[400795861,1767832232220,-1490.50948365,0.00014544,2]
[400795862,1767832232232,-80865.16387,0.00014544,2]
[400795863,1767832232244,-70943.06556364,0.00014544,2]
[400795864,1767832232257,-11114.53460831,0.00014544,2]
[400795865,1767832232269,-18819.08418703,0.00014544,2]
[400795867,1767832232280,-435.29300942,0.00014544,2]
[400795869,1767832232292,-2303.22682107,0.00014544,2]
[400795871,1767832232304,-1741.21936042,0.00014544,2]
[400795879,1767832238296,-500.0,0.00014543,2]
[400795880,1767832238306,-179.75690673,0.00014543,2]
[400795881,1767832238316,-525.87993136,0.00014543,2]
[400795882,1767832238326,-308.57406938,0.00014543,2]
[400795883,1767832238338,-89.92762095,0.00014543,2]
[400795884,1767832238347,-500.0,0.00014543,2]
[400795885,1767832238357,-171.41577059,0.00014543,2]
[400795886,1767832238367,-595.323318,0.00014544,2]
[400795887,1767832238378,-913.27546807,0.00014544,2]
[400795908,1767832238787,-500.0,0.00014543,2]
[400795910,1767832238798,-500.0,0.00014543,2]
[400795912,1767832238809,-802572.9489948,0.00014544,2]
[400795914,1767832238819,-3334.2467,0.00014634,2]
[400795916,1767832238828,-14226.2602,0.00014634,2]
[400795918,1767832238838,-3398.395,0.00014643,2]
[400795920,1767832238848,-174.361,0.00014643,2]
[400795922,1767832238858,-150.99,0.00014643,2]
[400795924,1767832238869,-299.99,0.00014643,2]
[400795926,1767832238879,-33574.8602,0.00014644,2]
[400795928,1767832238889,-2500.0,0.00014644,2]
[400795930,1767832238900,-33919.90408029,0.00014718,2]
[400795932,1767832238910,-1100.0,0.00014725,2]
[400795934,1767832238921,-9999.99,0.00014734,2]
[400795936,1767832238931,-836.52086768,0.00014734,2]
[400795938,1767832238940,-11726.32467956,0.00014734,2]
[400795940,1767832238950,-15916.11538229,0.00014734,2]
[400795942,1767832238960,-500.0,0.00014736,2]
[400795944,1767832238969,-151.0,0.00014736,2]
[400795946,1767832238979,-151.0,0.00014736,2]
[400795948,1767832238989,-151.0,0.00014736,2]
[400795950,1767832238998,-151.0,0.00014736,2]
[400795952,1767832239008,-151.0,0.00014736,2]
[400795954,1767832239018,-151.0,0.00014736,2]
[400795956,1767832239028,-151.0,0.00014736,2]
[400795958,1767832239038,-151.0,0.00014736,2]
[400795960,1767832239048,-151.0,0.00014736,2]
[400795962,1767832239057,-151.0,0.00014736,2]
[400795964,1767832239067,-151.0,0.00014736,2]
[400795966,1767832239078,-1547.27,0.00014736,2]
[400795968,1767832239087,-500.0,0.00014743,2]
[400795970,1767832239097,-500.0,0.00014744,2]
[400795972,1767832239106,-500.0,0.00014744,2]
[400795974,1767832239115,-500.0,0.00014744,2]
[400795976,1767832239125,-500.0,0.00014744,2]
[400795978,1767832239135,-500.0,0.00014744,2]
[400795980,1767832239144,-500.0,0.00014744,2]
[400795982,1767832239153,-500.0,0.00014744,2]
[400795984,1767832239163,-500.0,0.00014744,2]
[400795986,1767832239172,-500.0,0.00014744,2]
[400795988,1767832239181,-500.0,0.00014744,2]
[400795990,1767832239191,-529.68631152,0.00014744,2]
[400795992,1767832239200,-500.0,0.00014744,2]
[400795994,1767832239210,-500.0,0.00014744,2]
[400795996,1767832239220,-500.0,0.00014744,2]
[400795998,1767832239229,-513.96214798,0.00014744,2]
[400796000,1767832239239,-179.59986831,0.00014744,2]
[400796002,1767832239248,-500.0,0.00014744,2]
[400796004,1767832239259,-500.0,0.00014744,2]
[400796006,1767832239268,-319.8416144,0.00014744,2]
[400796008,1767832239280,-500.0,0.00014744,2]
[400796010,1767832239290,-500.0,0.00014744,2]
[400796012,1767832239300,-500.0,0.00014744,2]
[400796014,1767832239309,-500.0,0.00014744,2]
[400796016,1767832239319,-500.0,0.00014744,2]
[400796018,1767832239329,-500.0,0.00014744,2]
[400796020,1767832239338,-500.0,0.00014744,2]
[400796022,1767832239348,-500.0,0.00014744,2]
[400796024,1767832239361,-500.0,0.00014744,2]
[400796026,1767832239370,-500.0,0.00014744,2]
[400796028,1767832239382,-500.0,0.00014744,2]
[400796030,1767832239391,-500.0,0.00014744,2]
[400796032,1767832239401,-500.0,0.00014744,2]
[400796034,1767832239415,-506.42348911,0.00014744,2]
[400796036,1767832239424,-500.0,0.00014744,2]
[400796038,1767832239434,-500.0,0.00014744,2]
[400796040,1767832239443,-500.0,0.00014744,2]
[400796042,1767832239454,-508.99338834,0.00014744,2]
[400796044,1767832239463,-500.0,0.00014744,2]
[400796046,1767832239472,-500.0,0.00014744,2]
[400796049,1767832239483,-500.0,0.00014744,2]
[400796050,1767832239493,-500.0,0.00014744,2]
[400796053,1767832239503,-500.0,0.00014744,2]
[400796054,1767832239513,-500.0,0.00014744,2]
[400796057,1767832239523,-166.66,0.00014834,2]
[400796059,1767832239532,-414.2,0.00014956,2]
[400796061,1767832239542,-2268.8436,0.00014974,2]
[400796063,1767832239551,-500.0,0.00014999,2]
[400796065,1767832239561,-500.0,0.00014999,2]
[400796066,1767832239570,-1002.0,0.00014999,2]
[400796068,1767832239580,-500.0,0.00014999,2]
[400796071,1767832239590,-150.0,0.00014999,2]
[400796073,1767832239599,-150.0,0.00014999,2]
[400796075,1767832239609,-500.0,0.00014999,2]
[400796077,1767832239618,-500.0,0.00014999,2]
[400796079,1767832239627,-150.0,0.00014999,2]
[400796081,1767832239637,-150.0,0.00014999,2]
[400796083,1767832239646,-156.95469059,0.00014999,2]
[400796084,1767832239655,-499.0,0.00014999,2]
[400796086,1767832239664,-500.0,0.00014999,2]
[400796088,1767832239674,-150.0,0.00014999,2]
[400796090,1767832239684,-211.18152955,0.00014999,2]
[400796093,1767832239695,-150.0,0.00014999,2]
[400796094,1767832239705,-150.0,0.00014999,2]
[400796097,1767832239715,-150.0,0.00014999,2]
[400796098,1767832239725,-1547.27,0.0001501,2]
[400796101,1767832239735,-572.40855547,0.00015015,2]
[400796103,1767832239744,-1091.24377525,0.00015034,2]
[400796104,1767832239753,-500.0,0.00015054,2]
[400796106,1767832239763,-500.0,0.00015054,2]
[400796108,1767832239773,-1002.0,0.00015054,2]
[400796111,1767832239782,-150.0,0.00015054,2]
[400796113,1767832239793,-500.0,0.00015054,2]
[400796115,1767832239803,-200.0,0.00015054,2]
[400796117,1767832239812,-500.0,0.00015054,2]
[400796119,1767832239822,-519.25199485,0.00015054,2]
[400796121,1767832239831,-499.0,0.00015054,2]
[400796123,1767832239841,-500.0,0.00015054,2]
[400796125,1767832239851,-150.0,0.00015054,2]
[400796127,1767832239860,-150.0,0.00015054,2]
[400796129,1767832239869,-150.0,0.00015054,2]
[400796131,1767832239878,-500.0,0.00015068,2]
[400796133,1767832239888,-500.0,0.00015073,2]
[400796135,1767832239900,-500.0,0.00015073,2]
[400796137,1767832239911,-500.0,0.00015073,2]
[400796139,1767832239920,-500.0,0.00015073,2]
[400796141,1767832239931,-500.0,0.00015073,2]
[400796143,1767832239940,-500.0,0.00015073,2]
[400796145,1767832239949,-166.49390426,0.00015073,2]
[400796147,1767832239958,-500.0,0.00015073,2]
[400796149,1767832239968,-500.0,0.00015073,2]
[400796151,1767832239977,-500.0,0.00015073,2]
[400796153,1767832239987,-500.0,0.00015073,2]
[400796155,1767832239997,-500.0,0.00015073,2]
[400796157,1767832240006,-500.0,0.00015073,2]
[400796159,1767832240016,-500.0,0.00015073,2]
[400796161,1767832240025,-500.0,0.00015073,2]
[400796164,1767832240035,-500.0,0.00015073,2]
[400796167,1767832240044,-500.0,0.00015073,2]
[400796170,1767832240053,-500.0,0.00015073,2]
[400796173,1767832240063,-500.0,0.00015073,2]
[400796176,1767832240072,-311.64161933,0.00015073,2]
[400796179,1767832240081,-500.0,0.00015073,2]
[400796182,1767832240091,-500.0,0.00015073,2]
[400796185,1767832240100,-500.0,0.00015073,2]
[400796188,1767832240109,-500.0,0.00015073,2]
[400796190,1767832240119,-500.0,0.00015073,2]
[400796193,1767832240128,-500.0,0.00015073,2]
[400796196,1767832240138,-500.0,0.00015073,2]
[400796199,1767832240148,-1184.88969418,0.00015076,2]
[400796202,1767832240158,-11726.32467954,0.00015086,2]
[400796205,1767832240167,-15916.11538226,0.00015086,2]
[400796208,1767832240176,-500.0,0.00015109,2]
[400796211,1767832240186,-500.0,0.00015109,2]
[400796214,1767832240196,-1002.0,0.00015109,2]
[400796217,1767832240206,-150.0,0.00015109,2]
[400796220,1767832240216,-451.83036019,0.00015109,2]
[400796223,1767832240226,-500.0,0.00015109,2]
[400796226,1767832240235,-499.0,0.00015109,2]
[400796229,1767832240244,-500.0,0.00015109,2]
[400796232,1767832240254,-200.0,0.00015109,2]
[400796233,1767832240263,-200.0,0.00015109,2]
[400796236,1767832240272,-200.0,0.00015109,2]
[400796240,1767832240282,-200.67704286,0.00015121,2]
[400796242,1767832240292,-521.47480439,0.00015123,2]
[400796245,1767832240301,-166.66,0.0001514,2]
[400796248,1767832240311,-500.0,0.00015163,2]
[400796251,1767832240321,-300.0,0.00015163,2]
[400796254,1767832240331,-1002.0,0.00015163,2]
[400796257,1767832240340,-170.70051101,0.00015163,2]
[400796260,1767832240349,-500.0,0.00015163,2]
[400796264,1767832240359,-499.0,0.00015163,2]
[400796267,1767832240368,-500.0,0.00015163,2]
[400796270,1767832240377,-500.0,0.00015218,2]
[400796271,1767832240387,-1002.0,0.00015218,2]
[400796274,1767832240397,-500.0,0.00015218,2]
[400796277,1767832240410,-499.0,0.00015218,2]
[400796280,1767832240420,-500.0,0.00015218,2]
[400796283,1767832240430,-549.9,0.00015241,2]
[400796286,1767832240439,-836.52086768,0.00015262,2]
[400796290,1767832240450,-960.0,0.00015266,2]
[400796292,1767832240459,-500.0,0.00015273,2]
[400796295,1767832240468,-1002.0,0.00015273,2]
[400796298,1767832240480,-500.0,0.00015273,2]
[400796302,1767832240489,-499.0,0.00015273,2]
[400796304,1767832240499,-500.0,0.00015273,2]
[400796308,1767832240508,-500.0,0.00015284,2]
[400796310,1767832240517,-1547.27,0.00015284,2]
[400796312,1767832240527,-960.0,0.00015321,2]
[400796314,1767832240536,-500.0,0.00015328,2]
[400796317,1767832240545,-1002.0,0.00015328,2]
[400796320,1767832240555,-500.0,0.00015328,2]
[400796323,1767832240564,-499.0,0.00015328,2]
[400796326,1767832240573,-500.0,0.00015328,2]
[400796329,1767832240583,-960.0,0.00015376,2]
[400796332,1767832240593,-500.0,0.00015383,2]
[400796334,1767832240602,-1002.0,0.00015383,2]
[400796337,1767832240611,-500.0,0.00015383,2]
[400796340,1767832240621,-499.0,0.00015383,2]
[400796344,1767832240630,-500.0,0.00015383,2]
[400796347,1767832240640,-960.0,0.0001543,2]
[400796350,1767832240650,-500.0,0.00015437,2]
[400796353,1767832240659,-1002.0,0.00015437,2]
[400796355,1767832240669,-500.0,0.00015437,2]
[400796357,1767832240679,-499.0,0.00015437,2]
[400796361,1767832240688,-500.0,0.00015437,2]
[400796363,1767832240698,-11726.32467954,0.00015438,2]
[400796413,1767832241004,-15916.11538226,0.00015438,2]
[400796415,1767832241015,-166.66,0.00015446,2]
[400796417,1767832241028,-20306.38,0.00015446,2]
[400796419,1767832241043,-332.2,0.00015446,2]
[400796422,1767832241054,-151.0,0.00015456,2]
[400796423,1767832241065,-151.0,0.00015456,2]
[400796426,1767832241074,-151.0,0.00015459,2]
[400796427,1767832241083,-151.0,0.00015459,2]
[400796429,1767832241092,-151.0,0.00015468,2]
[400796431,1767832241101,-151.0,0.00015468,2]
[400796433,1767832241110,-960.0,0.00015485,2]
[400796435,1767832241120,-406.89851448,0.00015492,2]
[400796437,1767832241129,-1002.0,0.00015492,2]
[400796439,1767832241137,-500.0,0.00015492,2]
[400796441,1767832241147,-499.0,0.00015492,2]
[400796443,1767832241156,-500.0,0.00015492,2]
[400796445,1767832241166,-1100.0,0.000155,2]
[400796447,1767832241177,-960.0,0.0001554,2]
[400796450,1767832241186,-1002.0,0.00015547,2]
[400796452,1767832241196,-500.0,0.00015547,2]
[400796454,1767832241206,-499.0,0.00015547,2]
[400796456,1767832241216,-500.0,0.00015547,2]
[400796458,1767832241225,-1547.27,0.00015558,2]
[400796460,1767832241234,-960.0,0.00015595,2]
[400796462,1767832241243,-1002.0,0.00015602,2]
[400796464,1767832241252,-500.0,0.00015602,2]
[400796466,1767832241262,-499.0,0.00015602,2]
[400796468,1767832241275,-500.0,0.00015602,2]
[400796470,1767832241284,-1000.0,0.00015621,2]
[400796472,1767832241293,-1000.0,0.00015621,2]
[400796474,1767832241303,-556.0741427,0.00015621,2]
[400796476,1767832241312,-1000.0,0.00015621,2]
[400796478,1767832241322,-502.16378022,0.00015621,2]
[400796480,1767832241331,-211.87890519,0.00015621,2]
[400796482,1767832241340,-1015.65451742,0.00015621,2]
[400796484,1767832241350,-1000.0,0.00015621,2]
[400796486,1767832241359,-1000.0,0.00015621,2]
[400796488,1767832241368,-1000.0,0.00015621,2]
[400796490,1767832241377,-411.91622264,0.00015621,2]
[400796492,1767832241387,-1000.0,0.00015621,2]
[400796494,1767832241397,-1000.0,0.00015621,2]
[400796496,1767832241410,-1000.0,0.00015621,2]
[400796498,1767832241422,-413.08976684,0.00015621,2]
[400796500,1767832241431,-1000.0,0.00015621,2]
[400796502,1767832241440,-1000.0,0.00015621,2]
[400796504,1767832241450,-1000.73448024,0.00015621,2]
[400796506,1767832241459,-655.16094515,0.00015621,2]
[400796508,1767832241469,-1000.0,0.00015621,2]
[400796510,1767832241481,-1000.0,0.00015621,2]
[400796512,1767832241490,-1000.0,0.00015621,2]
[400796514,1767832241500,-1000.0,0.00015621,2]
[400796515,1767832241509,-1000.0,0.00015621,2]
[400796516,1767832241518,-960.0,0.0001565,2]
[400796517,1767832241527,-1002.0,0.00015657,2]
[400796518,1767832241537,-500.0,0.00015657,2]
[400796519,1767832241546,-499.0,0.00015657,2]